[Event "Late-Titled-Tuesday-Blitz-February-06-2024"]
[Site "Chess.com"]
[Date "2024.02.06"]
[Round "2"]
[White "guillembaches"]
[Black "Yushko_Olga"]
[Result "1/2-1/2"]
[WhiteElo "2550"]
[BlackElo "2211"]
[TimeControl "180+1"]
[EndTime "14:19:16 PST"]
[Termination "Game drawn - insufficient material"]

1. d4 {[%clk 0:03:00.9]} 1... e6 {[%clk 0:02:59.5]} 2. Nf3 {[%clk 0:03:01.1]}
2... Nf6 {[%clk 0:02:59.7]} 3. Bg5 {[%clk 0:03:00.9]} 3... d5 {[%clk 0:02:59.5]}
4. Nbd2 {[%clk 0:03:01]} 4... Nbd7 {[%clk 0:02:59.3]} 5. e3 {[%clk 0:03:01.6]}
5... c5 {[%clk 0:02:59.3]} 6. c3 {[%clk 0:03:00.7]} 6... Be7 {[%clk 0:02:59.1]}
7. Bd3 {[%clk 0:03:00.9]} 7... O-O {[%clk 0:02:59.2]} 8. Ne5 {[%clk 0:02:57.7]}
8... Nxe5 {[%clk 0:02:50.7]} 9. dxe5 {[%clk 0:02:58.6]} 9... Nd7 {[%clk
0:02:51.1]} 10. Bxe7 {[%clk 0:02:58.7]} 10... Qxe7 {[%clk 0:02:52]} 11. f4
{[%clk 0:02:59.2]} 11... f6 {[%clk 0:02:49.6]} 12. exf6 {[%clk 0:02:58.9]} 12...
Qxf6 {[%clk 0:02:48]} 13. Qh5 {[%clk 0:02:34.1]} 13... g6 {[%clk 0:02:42.6]} 14.
Qh6 {[%clk 0:02:34.2]} 14... Qg7 {[%clk 0:02:37.3]} 15. Qxg7+ {[%clk 0:02:27.7]}
15... Kxg7 {[%clk 0:02:37.3]} 16. Nf3 {[%clk 0:02:27.8]} 16... c4 {[%clk
0:02:33.6]} 17. Bc2 {[%clk 0:02:26.6]} 17... Nc5 {[%clk 0:02:34.4]} 18. Ne5
{[%clk 0:02:21.1]} 18... b5 {[%clk 0:02:28.5]} 19. Kd2 {[%clk 0:02:08.4]} 19...
Bb7 {[%clk 0:02:27.2]} 20. Rhe1 {[%clk 0:02:04.4]} 20... a5 {[%clk 0:02:26.9]}
21. a3 {[%clk 0:01:56.9]} 21... Rfd8 {[%clk 0:02:11.4]} 22. g4 {[%clk
0:01:51.6]} 22... Rab8 {[%clk 0:01:47.9]} 23. g5 {[%clk 0:01:49.2]} 23... Ba8
{[%clk 0:01:45.8]} 24. h4 {[%clk 0:01:45]} 24... b4 {[%clk 0:01:42.1]} 25. axb4
{[%clk 0:01:44.6]} 25... axb4 {[%clk 0:01:42.5]} 26. Ra7+ {[%clk 0:01:43.4]}
26... Kg8 {[%clk 0:01:37.4]} 27. h5 {[%clk 0:01:42.4]} 27... bxc3+ {[%clk
0:01:34.8]} 28. bxc3 {[%clk 0:01:39.4]} 28... Ne4+ {[%clk 0:01:24]} 29. Bxe4
{[%clk 0:01:30]} 29... dxe4+ {[%clk 0:01:24]} 30. Kc2 {[%clk 0:01:28.6]} 30...
gxh5 {[%clk 0:01:10.5]} 31. g6 {[%clk 0:01:18.4]} 31... hxg6 {[%clk 0:01:08.1]}
32. Rg1 {[%clk 0:01:18.5]} 32... Rb7 {[%clk 0:01:08.1]} 33. Rxb7 {[%clk
0:00:57.6]} 33... Bxb7 {[%clk 0:01:07.1]} 34. Rxg6+ {[%clk 0:00:58.2]} 34... Kh7
{[%clk 0:01:06.8]} 35. Rxe6 {[%clk 0:00:58.1]} 35... Bd5 {[%clk 0:00:59.3]} 36.
Rg6 {[%clk 0:00:46.3]} 36... Ra8 {[%clk 0:00:46.3]} 37. Rg5 {[%clk 0:00:42.3]}
37... Kh6 {[%clk 0:00:37]} 38. Nd7 {[%clk 0:00:29.1]} 38... Be6 {[%clk 0:00:28]}
39. Nc5 {[%clk 0:00:27.2]} 39... Bg4 {[%clk 0:00:21.7]} 40. Nxe4 {[%clk
0:00:25.2]} 40... Bf3 {[%clk 0:00:16.4]} 41. Ng3 {[%clk 0:00:20.6]} 41... h4
{[%clk 0:00:16.1]} 42. Nf5+ {[%clk 0:00:20.4]} 42... Kh7 {[%clk 0:00:16.4]} 43.
Nxh4 {[%clk 0:00:20.8]} 43... Be4+ {[%clk 0:00:16]} 44. Kc1 {[%clk 0:00:20.4]}
44... Ra1+ {[%clk 0:00:15.8]} 45. Kb2 {[%clk 0:00:18.5]} 45... Rb1+ {[%clk
0:00:16.1]} 46. Ka2 {[%clk 0:00:18.6]} 46... Rb3 {[%clk 0:00:16.3]} 47. Re5
{[%clk 0:00:17.8]} 47... Bd3 {[%clk 0:00:16.3]} 48. Nf5 {[%clk 0:00:17.2]} 48...
Rxc3 {[%clk 0:00:15.7]} 49. Nd4 {[%clk 0:00:16.4]} 49... Rc1 {[%clk 0:00:15.2]}
50. Rc5 {[%clk 0:00:16.3]} 50... Re1 {[%clk 0:00:15.1]} 51. f5 {[%clk
0:00:14.4]} 51... Rxe3 {[%clk 0:00:13.7]} 52. Kb2 {[%clk 0:00:14.4]} 52... Re1
{[%clk 0:00:12.9]} 53. Kc3 {[%clk 0:00:13]} 53... Rf1 {[%clk 0:00:12.3]} 54. Nb5
{[%clk 0:00:12.2]} 54... Rxf5 {[%clk 0:00:11.1]} 55. Rxf5 {[%clk 0:00:12.2]}
55... Bxf5 {[%clk 0:00:11.4]} 56. Nd6 {[%clk 0:00:12.6]} 56... Bd3 {[%clk
0:00:11.2]} 57. Kd4 {[%clk 0:00:12.5]} 57... Kg6 {[%clk 0:00:11.5]} 58. Nb5
{[%clk 0:00:11.9]} 58... Kf5 {[%clk 0:00:11.9]} 59. Na3 {[%clk 0:00:12]} 59...
Kf4 {[%clk 0:00:11.5]} 60. Nxc4 {[%clk 0:00:12]} 1/2-1/2

[Event "Late-Titled-Tuesday-Blitz-February-06-2024"]
[Site "Chess.com"]
[Date "2024.02.06"]
[Round "2"]
[White "igorkovalenko"]
[Black "OglazaOskar2005"]
[Result "1-0"]
[WhiteElo "2996"]
[BlackElo "2615"]
[TimeControl "180+1"]
[EndTime "14:19:23 PST"]
[Termination "igorkovalenko won by resignation"]

1. c4 {[%clk 0:03:00.9]} 1... e5 {[%clk 0:02:57.5]} 2. Nc3 {[%clk 0:02:59.7]}
2... Nf6 {[%clk 0:02:57.1]} 3. Nf3 {[%clk 0:03:00.1]} 3... Nc6 {[%clk
0:02:54.6]} 4. g3 {[%clk 0:03:00.2]} 4... d6 {[%clk 0:02:30.9]} 5. Bg2 {[%clk
0:03:00.1]} 5... Be7 {[%clk 0:02:30]} 6. O-O {[%clk 0:02:59.9]} 6... O-O {[%clk
0:02:30.6]} 7. d4 {[%clk 0:02:59.7]} 7... exd4 {[%clk 0:02:29]} 8. Nxd4 {[%clk
0:03:00.6]} 8... Nxd4 {[%clk 0:02:25.4]} 9. Qxd4 {[%clk 0:03:01.5]} 9... a6
{[%clk 0:02:21.1]} 10. a4 {[%clk 0:02:55]} 10... Rb8 {[%clk 0:02:16.5]} 11. a5
{[%clk 0:02:54.6]} 11... Bd7 {[%clk 0:02:15.1]} 12. e4 {[%clk 0:02:50.7]} 12...
Bc6 {[%clk 0:02:14]} 13. b4 {[%clk 0:02:48]} 13... Nd7 {[%clk 0:02:11.8]} 14.
Bd2 {[%clk 0:02:45.1]} 14... Bf6 {[%clk 0:02:11.5]} 15. Qd3 {[%clk 0:02:43]}
15... b5 {[%clk 0:01:59.2]} 16. axb6 {[%clk 0:02:42.4]} 16... Rxb6 {[%clk
0:01:57.9]} 17. Rab1 {[%clk 0:02:42.3]} 17... Qb8 {[%clk 0:01:49.7]} 18. Nd5
{[%clk 0:02:37.4]} 18... Bxd5 {[%clk 0:01:48.1]} 19. cxd5 {[%clk 0:02:36.4]}
19... Ne5 {[%clk 0:01:39.3]} 20. Qc2 {[%clk 0:02:35.5]} 20... c6 {[%clk
0:01:25.2]} 21. f4 {[%clk 0:02:28]} 21... Ng4 {[%clk 0:01:24.5]} 22. dxc6 {[%clk
0:01:56.7]} 22... Bd4+ {[%clk 0:01:24]} 23. Kh1 {[%clk 0:01:56.7]} 23... Nf2+
{[%clk 0:01:24.3]} 24. Rxf2 {[%clk 0:01:57.1]} 24... Bxf2 {[%clk 0:01:23.9]} 25.
Rf1 {[%clk 0:01:57]} 25... Bd4 {[%clk 0:01:22.9]} 26. Qc4 {[%clk 0:01:57]} 26...
Bf6 {[%clk 0:01:18.8]} 27. Bh3 {[%clk 0:01:57]} 27... Qc7 {[%clk 0:01:13.3]} 28.
Bd7 {[%clk 0:01:56.5]} 28... Rd8 {[%clk 0:00:58.8]} 29. Rc1 {[%clk 0:01:47.8]}
29... Rb5 {[%clk 0:00:56.1]} 30. Kg2 {[%clk 0:01:47.5]} 30... g6 {[%clk
0:00:48.3]} 31. h4 {[%clk 0:01:47.5]} 31... Rdb8 {[%clk 0:00:42.3]} 32. Rc2
{[%clk 0:01:47.3]} 32... a5 {[%clk 0:00:34.5]} 33. bxa5 {[%clk 0:01:47.2]} 33...
Rb2 {[%clk 0:00:35]} 34. Kh3 {[%clk 0:01:33.4]} 34... Rxc2 {[%clk 0:00:34.4]}
35. Qxc2 {[%clk 0:01:33.6]} 35... Rb2 {[%clk 0:00:34.4]} 36. Qc1 {[%clk
0:01:20.6]} 36... Ra2 {[%clk 0:00:29.3]} 37. Bb4 {[%clk 0:01:11.6]} 37... h5
{[%clk 0:00:26.8]} 38. Qg1 {[%clk 0:01:04.4]} 38... Ra4 {[%clk 0:00:24.7]} 39.
Qb6 {[%clk 0:01:03.2]} 39... Bd8 {[%clk 0:00:24]} 40. Qxc7 {[%clk 0:00:49.2]}
40... Bxc7 {[%clk 0:00:23.5]} 41. Bxd6 {[%clk 0:00:49.6]} 41... Bxd6 {[%clk
0:00:15.5]} 42. c7 {[%clk 0:00:50.1]} 42... Bxc7 {[%clk 0:00:16.1]} 43. Bxa4
{[%clk 0:00:49.9]} 43... Bxa5 {[%clk 0:00:16.7]} 44. e5 {[%clk 0:00:50.6]} 44...
Kg7 {[%clk 0:00:17]} 45. Bb3 {[%clk 0:00:50.9]} 45... Be1 {[%clk 0:00:17.2]} 46.
Kg2 {[%clk 0:00:50.7]} 46... Bd2 {[%clk 0:00:17.6]} 47. Kf3 {[%clk 0:00:51.4]}
47... Be1 {[%clk 0:00:17.9]} 48. Bc4 {[%clk 0:00:51.4]} 48... Kf8 {[%clk
0:00:17.2]} 49. Bd3 {[%clk 0:00:51.2]} 49... Ke7 {[%clk 0:00:17.7]} 50. Bc2
{[%clk 0:00:51.4]} 50... Bd2 {[%clk 0:00:17.9]} 51. Kf2 {[%clk 0:00:51.1]} 51...
Bc3 {[%clk 0:00:18.3]} 52. Bd3 {[%clk 0:00:51.4]} 52... Bd4+ {[%clk 0:00:18.1]}
53. Kf3 {[%clk 0:00:51.9]} 53... Bc3 {[%clk 0:00:18.7]} 54. Bc4 {[%clk
0:00:51.7]} 54... Be1 {[%clk 0:00:18.8]} 55. Kg2 {[%clk 0:00:52.6]} 55... Bc3
{[%clk 0:00:19.1]} 56. Bb3 {[%clk 0:00:53]} 56... Bd4 {[%clk 0:00:19.4]} 57. Kf3
{[%clk 0:00:53.3]} 57... Bc3 {[%clk 0:00:20]} 58. Bc2 {[%clk 0:00:51.5]} 58...
Be1 {[%clk 0:00:18.9]} 59. Bd1 {[%clk 0:00:45.8]} 59... Bc3 {[%clk 0:00:19.1]}
60. Be2 {[%clk 0:00:46.3]} 60... Be1 {[%clk 0:00:19.2]} 61. f5 {[%clk
0:00:46.8]} 61... gxf5 {[%clk 0:00:18.5]} 62. Kf4 {[%clk 0:00:47.3]} 62... Bf2
{[%clk 0:00:16.6]} 63. Bxh5 {[%clk 0:00:46.2]} 63... Ke6 {[%clk 0:00:17]} 64.
Bd1 {[%clk 0:00:45.1]} 64... Be1 {[%clk 0:00:17.2]} 65. Bb3+ {[%clk 0:00:45.1]}
65... Ke7 {[%clk 0:00:17.6]} 66. h5 {[%clk 0:00:45.7]} 66... Bd2+ {[%clk
0:00:17.6]} 67. Kxf5 {[%clk 0:00:46.2]} 67... Bh6 {[%clk 0:00:14.5]} 68. g4
{[%clk 0:00:46.6]} 68... Bd2 {[%clk 0:00:14.3]} 69. g5 {[%clk 0:00:46.8]} 69...
Kf8 {[%clk 0:00:14.6]} 70. h6 {[%clk 0:00:47.2]} 70... Bc1 {[%clk 0:00:13.2]}
71. Kf6 {[%clk 0:00:37.6]} 71... Kg8 {[%clk 0:00:11.6]} 72. Bxf7+ {[%clk
0:00:36.1]} 72... Kh8 {[%clk 0:00:12.1]} 73. e6 {[%clk 0:00:33.6]} 73... Bb2+
{[%clk 0:00:11.7]} 74. Kf5 {[%clk 0:00:34.1]} 74... Ba3 {[%clk 0:00:11.9]} 75.
g6 {[%clk 0:00:34.1]} 75... Bf8 {[%clk 0:00:05.9]} 76. g7+ {[%clk 0:00:34.4]}
76... Bxg7 {[%clk 0:00:06.5]} 77. hxg7+ {[%clk 0:00:35.3]} 77... Kxg7 {[%clk
0:00:07]} 78. Bh5 {[%clk 0:00:35.5]} 78... Kh6 {[%clk 0:00:06]} 79. e7 {[%clk
0:00:35.3]} 79... Kxh5 {[%clk 0:00:06.6]} 80. e8=Q+ {[%clk 0:00:35.6]} 80... Kh4
{[%clk 0:00:07.5]} 81. Qe3 {[%clk 0:00:35.5]} 1-0

[Event "Late-Titled-Tuesday-Blitz-February-06-2024"]
[Site "Chess.com"]
[Date "2024.02.06"]
[Round "2"]
[White "FaustinoOro"]
[Black "The_Straightforward_Rook"]
[Result "1/2-1/2"]
[WhiteElo "2742"]
[BlackElo "2430"]
[TimeControl "180+1"]
[EndTime "14:19:23 PST"]
[Termination "Game drawn - insufficient material"]

1. e4 {[%clk 0:03:00.9]} 1... c6 {[%clk 0:02:59]} 2. Nf3 {[%clk 0:02:57.2]} 2...
d5 {[%clk 0:02:59.9]} 3. Nc3 {[%clk 0:02:57.6]} 3... dxe4 {[%clk 0:03:00.1]} 4.
Nxe4 {[%clk 0:02:57.7]} 4... Nf6 {[%clk 0:03:01]} 5. Qe2 {[%clk 0:02:57]} 5...
Nxe4 {[%clk 0:03:01.3]} 6. Qxe4 {[%clk 0:02:57.9]} 6... Qd5 {[%clk 0:03:02]} 7.
Qh4 {[%clk 0:02:55]} 7... Qe6+ {[%clk 0:03:00.9]} 8. Be2 {[%clk 0:02:53.9]} 8...
Qg4 {[%clk 0:03:01.6]} 9. Qg3 {[%clk 0:02:53.7]} 9... Qxg3 {[%clk 0:03:01]} 10.
hxg3 {[%clk 0:02:54.6]} 10... g6 {[%clk 0:03:01.9]} 11. d4 {[%clk 0:02:51.2]}
11... Bf5 {[%clk 0:02:57]} 12. c3 {[%clk 0:02:50.3]} 12... Bg7 {[%clk
0:02:55.1]} 13. Bh6 {[%clk 0:02:48.5]} 13... Kf8 {[%clk 0:02:53.7]} 14. O-O-O
{[%clk 0:02:42.7]} 14... Bxh6+ {[%clk 0:02:53.2]} 15. Rxh6 {[%clk 0:02:43.2]}
15... Kg7 {[%clk 0:02:53.8]} 16. Rhh1 {[%clk 0:02:43.7]} 16... h5 {[%clk
0:02:52.8]} 17. Rhe1 {[%clk 0:02:41]} 17... Nd7 {[%clk 0:02:50.8]} 18. Bc4
{[%clk 0:02:30.1]} 18... e6 {[%clk 0:02:45.1]} 19. Bb3 {[%clk 0:02:17.3]} 19...
Bg4 {[%clk 0:02:38.3]} 20. Rd3 {[%clk 0:02:16.2]} 20... Rad8 {[%clk 0:02:29.9]}
21. Ne5 {[%clk 0:02:03.3]} 21... Nxe5 {[%clk 0:02:21.9]} 22. Rxe5 {[%clk
0:02:04.2]} 22... Bf5 {[%clk 0:02:09.4]} 23. Rde3 {[%clk 0:02:02.2]} 23... h4
{[%clk 0:02:08.1]} 24. gxh4 {[%clk 0:01:52.9]} 24... Rxh4 {[%clk 0:02:07.8]} 25.
f3 {[%clk 0:01:51.6]} 25... b6 {[%clk 0:01:36.7]} 26. g4 {[%clk 0:01:45.1]}
26... f6 {[%clk 0:01:21.7]} 27. Rxe6 {[%clk 0:01:18.5]} 27... Bxe6 {[%clk
0:01:21.3]} 28. Rxe6 {[%clk 0:01:19.4]} 28... c5 {[%clk 0:01:18.1]} 29. d5
{[%clk 0:01:10.9]} 29... f5 {[%clk 0:01:16.6]} 30. g5 {[%clk 0:01:00.5]} 30...
c4 {[%clk 0:01:15.4]} 31. Ba4 {[%clk 0:00:50.5]} 31... Rxd5 {[%clk 0:01:15.3]}
32. Re7+ {[%clk 0:00:50.8]} 32... Kf8 {[%clk 0:01:14.7]} 33. Rxa7 {[%clk
0:00:47.5]} 33... Rh1+ {[%clk 0:01:13.6]} 34. Kc2 {[%clk 0:00:46.9]} 34... Rh2+
{[%clk 0:01:12.5]} 35. Kc1 {[%clk 0:00:47.3]} 35... Re5 {[%clk 0:01:11.3]} 36.
Bd1 {[%clk 0:00:35.9]} 36... Re1 {[%clk 0:01:08.8]} 37. Rd7 {[%clk 0:00:35.8]}
37... Ke8 {[%clk 0:01:02.5]} 38. Rd4 {[%clk 0:00:32.3]} 38... b5 {[%clk
0:01:00.6]} 39. a4 {[%clk 0:00:29.1]} 39... bxa4 {[%clk 0:00:57.5]} 40. Rxc4
{[%clk 0:00:29.5]} 40... Rhh1 {[%clk 0:00:47.3]} 41. Rd4 {[%clk 0:00:29.6]}
41... Rhg1 {[%clk 0:00:47.9]} 42. f4 {[%clk 0:00:27.8]} 42... Rg2 {[%clk
0:00:44.2]} 43. Rxa4 {[%clk 0:00:22.4]} 43... Rf1 {[%clk 0:00:42.1]} 44. Rd4
{[%clk 0:00:20.4]} 44... Rgf2 {[%clk 0:00:42.1]} 45. b4 {[%clk 0:00:19.8]} 45...
Rxf4 {[%clk 0:00:42.2]} 46. Rd6 {[%clk 0:00:19.9]} 46... Kf7 {[%clk 0:00:31.5]}
47. b5 {[%clk 0:00:19.4]} 47... Rc4 {[%clk 0:00:26.7]} 48. Kb2 {[%clk
0:00:15.6]} 48... Rc5 {[%clk 0:00:21]} 49. Bb3+ {[%clk 0:00:09.1]} 49... Ke7
{[%clk 0:00:17.9]} 50. Re6+ {[%clk 0:00:09.7]} 50... Kd7 {[%clk 0:00:17.7]} 51.
Rxg6 {[%clk 0:00:07.4]} 51... Rxb5 {[%clk 0:00:17.6]} 52. Rf6 {[%clk 0:00:03.1]}
52... f4 {[%clk 0:00:17.7]} 53. g6 {[%clk 0:00:03.1]} 53... Rg5 {[%clk
0:00:17.9]} 54. Bf7 {[%clk 0:00:01.7]} 54... f3 {[%clk 0:00:17.7]} 55. Bc4
{[%clk 0:00:01.2]} 55... Rf2+ {[%clk 0:00:17.1]} 56. Kb3 {[%clk 0:00:01.9]}
56... Rfg2 {[%clk 0:00:16]} 57. Rxf3 {[%clk 0:00:01.8]} 57... Rxg6 {[%clk
0:00:16.6]} 58. Bb5+ {[%clk 0:00:02.4]} 58... Kc7 {[%clk 0:00:15.9]} 59. Bc4
{[%clk 0:00:03.3]} 59... R2g3 {[%clk 0:00:14.9]} 60. Rxg3 {[%clk 0:00:02.9]}
60... Rxg3 {[%clk 0:00:15]} 61. Kb4 {[%clk 0:00:03.8]} 61... Rxc3 {[%clk
0:00:12.9]} 62. Kxc3 {[%clk 0:00:04]} 1/2-1/2

[Event "Late-Titled-Tuesday-Blitz-February-06-2024"]
[Site "Chess.com"]
[Date "2024.02.06"]
[Round "2"]
[White "LionTheLeon_06"]
[Black "Walter_White_Poland"]
[Result "1-0"]
[WhiteElo "2886"]
[BlackElo "2404"]
[TimeControl "180+1"]
[EndTime "14:19:42 PST"]
[Termination "LionTheLeon_06 won by resignation"]

1. e4 {[%clk 0:03:00.9]} 1... e6 {[%clk 0:02:59.8]} 2. Nf3 {[%clk 0:03:01.3]}
2... d5 {[%clk 0:02:59.9]} 3. d3 {[%clk 0:02:59.2]} 3... dxe4 {[%clk 0:02:58.5]}
4. dxe4 {[%clk 0:02:59.1]} 4... Qxd1+ {[%clk 0:02:58.5]} 5. Kxd1 {[%clk
0:03:00]} 5... Nc6 {[%clk 0:02:54.5]} 6. c3 {[%clk 0:02:59.9]} 6... Bc5 {[%clk
0:02:48.9]} 7. Ke1 {[%clk 0:02:53.8]} 7... a5 {[%clk 0:02:47.9]} 8. Bd3 {[%clk
0:02:53.2]} 8... e5 {[%clk 0:02:47.2]} 9. Ke2 {[%clk 0:02:53.3]} 9... Nf6 {[%clk
0:02:19.7]} 10. Bg5 {[%clk 0:02:45.1]} 10... Nd7 {[%clk 0:02:10.1]} 11. Nbd2
{[%clk 0:02:43.5]} 11... f6 {[%clk 0:02:10]} 12. Bh4 {[%clk 0:02:37.9]} 12...
Nb6 {[%clk 0:02:09.9]} 13. Ne1 {[%clk 0:02:25.2]} 13... a4 {[%clk 0:02:05.1]}
14. Nc2 {[%clk 0:02:25]} 14... Be6 {[%clk 0:02:03.8]} 15. Rhd1 {[%clk
0:02:22.9]} 15... O-O-O {[%clk 0:02:03.1]} 16. Nf1 {[%clk 0:02:14.9]} 16... Rxd3
{[%clk 0:01:34.7]} 17. Rxd3 {[%clk 0:02:14.8]} 17... Bc4 {[%clk 0:01:33.9]} 18.
b3 {[%clk 0:02:06.7]} 18... Bxd3+ {[%clk 0:00:44.1]} 19. Kxd3 {[%clk 0:02:06.5]}
19... Rd8+ {[%clk 0:00:44.8]} 20. Ke2 {[%clk 0:02:06.9]} 20... Be7 {[%clk
0:00:33.9]} 21. f3 {[%clk 0:02:05.4]} 21... Kd7 {[%clk 0:00:32.2]} 22. Nfe3
{[%clk 0:02:04]} 22... Ke6 {[%clk 0:00:31.7]} 23. b4 {[%clk 0:02:00.4]} 23...
Na7 {[%clk 0:00:25.6]} 24. Na3 {[%clk 0:01:55.1]} 24... c5 {[%clk 0:00:23.4]}
25. Be1 {[%clk 0:01:41.7]} 25... cxb4 {[%clk 0:00:22.4]} 26. cxb4 {[%clk
0:01:42.6]} 26... Nc6 {[%clk 0:00:21.7]} 27. Nec2 {[%clk 0:01:15.6]} 27... Nd4+
{[%clk 0:00:16.8]} 28. Nxd4+ {[%clk 0:01:15.9]} 28... Rxd4 {[%clk 0:00:16.9]}
29. Rb1 {[%clk 0:01:15.4]} 29... Nc4 {[%clk 0:00:16.2]} 30. Nc2 {[%clk 0:01:11]}
30... Rd7 {[%clk 0:00:15.4]} 31. b5 {[%clk 0:01:11.4]} 31... Bc5 {[%clk
0:00:13.7]} 32. Rc1 {[%clk 0:01:05.4]} 32... b6 {[%clk 0:00:12.9]} 33. Bc3
{[%clk 0:01:01.5]} 33... Rd8 {[%clk 0:00:11.7]} 34. Ne1 {[%clk 0:01:01.9]} 34...
Ba3 {[%clk 0:00:10.6]} 35. Rc2 {[%clk 0:00:59.4]} 35... Bc5 {[%clk 0:00:11.2]}
36. Rc1 {[%clk 0:00:57.3]} 36... Ba3 {[%clk 0:00:09.3]} 37. Rb1 {[%clk
0:00:57.6]} 37... Bc5 {[%clk 0:00:08.8]} 38. Nd3 {[%clk 0:00:58]} 38... Rc8
{[%clk 0:00:08.4]} 39. Be1 {[%clk 0:00:54.8]} 39... Na3 {[%clk 0:00:08.1]} 40.
Rc1 {[%clk 0:00:54.3]} 40... Kd7 {[%clk 0:00:07.1]} 41. Nxc5+ {[%clk 0:00:46.7]}
41... Rxc5 {[%clk 0:00:08]} 42. Rxc5 {[%clk 0:00:20.8]} 42... bxc5 {[%clk
0:00:08.9]} 43. Kd3 {[%clk 0:00:21.7]} 43... Kd6 {[%clk 0:00:07.9]} 44. b6
{[%clk 0:00:18.6]} 44... Kc6 {[%clk 0:00:07.2]} 45. Ba5 {[%clk 0:00:14.6]} 45...
Nb5 {[%clk 0:00:07.1]} 46. h4 {[%clk 0:00:10.6]} 46... Nd6 {[%clk 0:00:05.1]}
47. h5 {[%clk 0:00:08.8]} 47... Nc8 {[%clk 0:00:04.9]} 48. Bd2 {[%clk
0:00:05.7]} 48... Nxb6 {[%clk 0:00:03.8]} 49. Kc3 {[%clk 0:00:06.1]} 49... Kb5
{[%clk 0:00:04.1]} 50. Kd3 {[%clk 0:00:06]} 50... Nc8 {[%clk 0:00:04.3]} 51. h6
{[%clk 0:00:04.1]} 51... gxh6 {[%clk 0:00:03.7]} 52. Bxh6 {[%clk 0:00:04.2]}
52... Nd6 {[%clk 0:00:03.3]} 53. Bg7 {[%clk 0:00:04.5]} 53... c4+ {[%clk
0:00:03.2]} 54. Kc3 {[%clk 0:00:04.6]} 54... Ne8 {[%clk 0:00:04.1]} 55. Bf8
{[%clk 0:00:04.4]} 55... Nc7 {[%clk 0:00:03.1]} 56. Be7 {[%clk 0:00:04.7]} 56...
Ne8 {[%clk 0:00:02.8]} 57. g3 {[%clk 0:00:05]} 57... Kc6 {[%clk 0:00:02.9]} 58.
Kxc4 {[%clk 0:00:04.9]} 58... Kd7 {[%clk 0:00:03.7]} 59. Bf8 {[%clk 0:00:05.2]}
59... h5 {[%clk 0:00:04.1]} 60. Kb4 {[%clk 0:00:05.2]} 60... Ke6 {[%clk
0:00:04.3]} 61. Kxa4 {[%clk 0:00:04.9]} 61... f5 {[%clk 0:00:05]} 62. Kb5 {[%clk
0:00:04.6]} 62... f4 {[%clk 0:00:05.5]} 63. gxf4 {[%clk 0:00:04.6]} 63... h4
{[%clk 0:00:05.7]} 64. Bc5 {[%clk 0:00:04.3]} 64... exf4 {[%clk 0:00:05.7]} 65.
Bg1 {[%clk 0:00:04.7]} 65... Nd6+ {[%clk 0:00:05.9]} 66. Kb4 {[%clk 0:00:03.9]}
66... Ke5 {[%clk 0:00:06.2]} 67. a4 {[%clk 0:00:03.9]} 67... Nxe4 {[%clk
0:00:06.5]} 68. fxe4 {[%clk 0:00:03.9]} 68... f3 {[%clk 0:00:06.6]} 69. a5
{[%clk 0:00:04.4]} 69... h3 {[%clk 0:00:06.7]} 70. a6 {[%clk 0:00:05]} 70...
Kxe4 {[%clk 0:00:07.2]} 71. a7 {[%clk 0:00:05.2]} 71... h2 {[%clk 0:00:07.7]}
72. Bxh2 {[%clk 0:00:05]} 72... f2 {[%clk 0:00:08.3]} 73. a8=Q+ {[%clk
0:00:05.6]} 73... Ke3 {[%clk 0:00:08]} 74. Qa6 {[%clk 0:00:05.7]} 1-0